Cogmind - Beta 15 @@@ ROGUE MODE // 2025.07.31 @ 22:01:41 Player: Windjigo Result: Destroyed by G-50 Soldier with Heavy Laser Performance ------------- Evolutions (4) 2000 Regions Visited (6) 1200 Robots Destroyed (63) 315 Value Destroyed (1731) 1731 Prototype IDs (14) 280 Alien Tech Used (0) 0 Bonus (500) 500 TOTAL SCORE: 6026 Bonus ------- Entered DSFs 500 Cogmind --------- Core Integrity 0/850 Matter 300/300 Energy 47/100 System Corruption 0% Temperature Cool (9) Movement Core (50) Location -6/DSF Parts ------- > --- POWER (2) -------- (None) > --- PROPULSION (2) --- (None) > --- UTILITY (8) ------ (None) > --- WEAPON (3) ------- (None) > --- INVENTORY (5) ---- Rainbow Chip Improved Assault Rifle Power Maul Power Maul Peak State ------------ > --- POWER ------------ Cooled Ion Engine Light Nuclear Core > --- PROPULSION ------- Armored Huge Wheel > --- UTILITY ---------- Improved Sensor Array Improved Signal Interpreter Improved Melee Analysis Suite Core Analyzer Actuator Array Improved Hardlight Generator Advanced Shield Generator > --- WEAPON ----------- Power Maul Power Maul > --- INVENTORY -------- Rainbow Chip Improved Assault Rifle Power Maul Power Maul [Rating: 52] Favorites ----------- Power Ion Engine Engine Ion Engine Power Core Light Nuclear Core Propulsion Improved Treads Treads Improved Treads Wheel Armored Huge Wheel Hover Unit Gravmag System Flight Unit Improved Flight Unit Utility Makeshift Light Armor Plating Device Actuator Array Storage Small Storage Unit Processor Improved Melee Analysis Suite Protection Makeshift Light Armor Plating Weapon Power Maul Ballistic Gun Assault Rifle Ballistic Cannon Battle Cannon Launcher Subdweller Shrapnel Launcher Impact Weapon Power Maul Build | -11 -10 -10 -8 -7 -6 -6 ------- Run | Yrd Mat Sub Mat Fac Fac DSF Slots Evolved 8 | . . . 4 2 2 . Power 1 | . . . . 1 . . Propulsion . | . . . . . . . Utility 6 | . . . 3 1 2 . Weapon 1 | . . . 1 . . . Parts Attached 52 | 7 4 13 19 6 1 2 Power 7 | 1 . 1 3 2 . . Engine 4 | 1 . 1 2 . . . Core 3 | . . . 1 2 . . Reactor . | . . . . . . . Propulsion 14 | 2 2 4 5 1 . . Treads 7 | 2 2 3 . . . . Leg . | . . . . . . . Wheel 1 | . . . . 1 . . Hover 5 | . . 1 4 . . . Flight 1 | . . . 1 . . . Utility 17 | 2 . 3 6 3 1 2 Device 10 | 1 . 1 4 2 . 2 Storage 1 | 1 . . . . . . Processor 4 | . . . 2 1 1 . Hackware . | . . . . . . . Protection 2 | . . 2 . . . . Artifact . | . . . . . . . Weapon 14 | 2 2 5 5 . . . Energy Gun . | . . . . . . . Energy Cannon . | . . . . . . . Ballistic Gun 7 | 2 2 2 1 . . . Ballistic Cannon 2 | . . 2 . . . . Launcher 1 | . . 1 . . . . Special Weapon . | . . . . . . . Impact Weapon 4 | . . . 4 . . . Slashing Weapon . | . . . . . . . Piercing Weapon . | . . . . . . . Special Melee Weapon . | . . . . . . . Unidentified Prototypes 3 | . . . 3 . . . Parts Lost 24 | . . 9 3 3 . 9 Power 4 | . . 1 1 1 . 1 Propulsion 6 | . . 3 2 . . 1 Utility 9 | . . 2 . 2 . 5 Weapon 5 | . . 3 . . . 2 Highest Loss Streak 9 | . . 4 2 3 . 9 To Critical Strikes . | . . . . . . . Average Backups 6 | 4 7 7 4 4 3 3 Power . | 1 1 . . 1 . . Propulsion 1 | 2 2 1 . . . . Utility 1 | . . 2 1 1 1 1 Weapon 2 | 1 3 2 1 2 2 2 Tool/Special . | . . . . . . . Unused Backups 14 | . 3 6 3 . . 2 Power 2 | . 1 . 1 . . . Propulsion 2 | . 1 1 . . . . Utility 3 | . . 1 1 . . 1 Weapon 7 | . 1 4 1 . . 1 Tool/Special . | . . . . . . . Average Slot Usage (%) 94 | . 100 97 89 94 70 58 Engine 10 | . 14 14 2 4 6 3 Core 2 | . . . 6 7 6 4 Treads 16 | . 28 25 1 . . . Hover 4 | . . 1 15 9 . . Device 10 | . 14 4 16 23 13 13 Storage 7 | . 14 12 . . . . Processor 4 | . . . 11 14 17 17 Protection 9 | . . 11 9 7 . . Ballistic Gun 7 | . 28 9 1 . . . Ballistic Cannon 10 | . . 18 1 . . . Impact Weapon 8 | . . . 24 23 20 13 Peak Build Rating 52 | 7 10 16 42 49 45 52 Average Rating 22 | 5 8 12 37 47 44 35 On Entrance 22 | . 7 10 16 42 39 45 Naked Turns 9 | . . . . . . 9 Heaviest Build 38 | 14 15 20 32 37 28 38 Greatest Support 46 | 40 46 46 43 28 28 28 Greatest Overweight (x) 3 | 2 . 2 3 1 . 3 Average Overweight (x) . | . . . . . . . Largest Inventory Capacity 8 | 8 8 8 5 5 5 5 Average Capacity 6 | 7 8 7 5 5 5 5 Most Carried 8 | 8 8 8 5 5 4 5 Average Carried 6 | 4 7 7 4 4 3 3 Final Capacity 8 | 8 8 5 5 5 5 5 Final Carried 8 | 5 8 5 5 5 3 4 Class Distribution -------------------- 64% | Mutant 31% | Gladiator Dominant Class ---------------- Mutant | -10/Materials Mutant | -10/Subcaves Gladiator | -8/Materials Gladiator | -7/Factory Gladiator | -6/Factory Mutant | -6/DSF Resources | -11 -10 -10 -8 -7 -6 -6 ----------- Run | Yrd Mat Sub Mat Fac Fac DSF Matter Collected 1561 | 342 32 755 325 80 . 27 Remotely . | . . . . . . . Salvage Created 2004 | 195 50 454 846 396 . 63 Parts 91 | 18 5 31 24 10 . 3 Haulers Intercepted 5 | . . . 5 . . . Recyclers Shooed 2 | . . . 2 . . . Parts Field Recycled . | . . . . . . . Retrieved Matter . | . . . . . . . Parts Self-Destructed 6 | . . 6 . . . . Prevented . | . . . . . . . Kills | -11 -10 -10 -8 -7 -6 -6 ------- Run | Yrd Mat Sub Mat Fac Fac DSF Combat Hostiles Destroyed 44 | . 3 17 14 9 . 1 Melee 16 | . . . 10 5 . 1 Guns 11 | . 3 8 . . . . Cannons 6 | . . 6 . . . . AOE 3 | . . 3 . . . . Classes Destroyed 12 | 2 1 2 5 1 . 1 Tunneler 5 | 5 . . . . . . Hauler 5 | . . . 5 . . . Recycler 3 | 1 . . 2 . . . Operator 2 | . . . 1 1 . . Watcher 4 | . . . 3 1 . . Swarmer 15 | . 3 4 6 2 . . Grunt 11 | . . . 6 5 . . Sentry 3 | . . 1 1 1 . . Specialist 1 | . . . . . . 1 Hunter 1 | . . . 1 . . . Programmer 1 | . . . . 1 . . Subdweller 12 | . . 12 . . . . Best Kill Streak 7 | 6 3 3 7 5 . 1 Combat Bots Only 7 | . 3 3 7 4 . 1 Max Kills in Single Turn 3 | 1 2 3 2 1 . 1 Gunslinging 1 | . 1 . . . . . Exploded 3 | . . 3 . . . . Melee 2 | . . . 2 1 . 1 Uniques/NPCs Destroyed . | . . . . . . . Combat | -11 -10 -10 -8 -7 -6 -6 -------- Run | Yrd Mat Sub Mat Fac Fac DSF Hostile Shots Fired 316 | . 7 104 52 81 . 72 Missed 82 | . 2 26 10 28 . 16 Hits 234 | . 5 78 42 53 . 56 Projectile 234 | . 5 78 42 53 . 56 AOE 2 | . . . . 2 . . Critical Strikes 6 | . . 1 . 2 . 3 Part Disruptions 1 | . . . . . . 1 Damage Taken 4464 | . 65 1638 498 763 . 1500 Core 1259 | . . 192 78 127 . 862 Absorbed by Shields 209 | . . . . 97 . 112 Regen/Repaired (Parts) 43 | . . . 43 . . . Core Remaining (%) 72 | 100 . 23 85 81 . . Volleys Fired 132 | 18 12 100 2 . . . Largest 2 | 2 2 2 1 . . . Hottest 73 | 40 40 73 28 . . . Shots Fired 220 | 36 24 158 2 . . . Gun 139 | 36 24 77 2 . . . Cannon 80 | . . 80 . . . . Launcher 1 | . . 1 . . . . Special . | . . . . . . . Kinetic 220 | 36 24 158 2 . . . Thermal . | . . . . . . . Explosive . | . . . . . . . Electromagnetic . | . . . . . . . Robot Hit Streak 30 | 5 5 30 1 . . . Robot Miss Streak 9 | 3 9 5 1 . . . Penetration Max . | . . . . . . . Secondary Targets 2 | . 1 1 . . . . Max Gunslinging Chain 1 | . 1 1 . . . . Shots Hit Robots 190 | 19 10 94 37 24 . 6 Core Hits 56 | 9 3 28 10 5 . 1 Critical Kills 4 | . . . 2 2 . . Critical Parts Destroyed 19 | 1 . . 10 7 . 1 Critical Strikes 27 | 1 . 4 12 9 . 1 Destroy 3 | 1 . 1 1 . . . Blast 3 | . . 3 . . . . Smash 21 | . . . 11 9 . 1 Melee Attacks 88 | . . . 46 34 . 8 Impact 88 | . . . 46 34 . 8 Slashing . | . . . . . . . Piercing . | . . . . . . . Sneak Attacks 9 | . . . 8 . . 1 Combat Hostiles 1 | . . . . . . 1 Follow-up Attacks 19 | . . . 9 9 . 1 Damage Inflicted 5337 | 208 126 1513 2082 1171 . 237 Guns 1040 | 208 126 688 18 . . . Cannons 662 | . . 662 . . . . Explosions 163 | . . 163 . . . . Melee 3472 | . . . 2064 1171 . 237 Ramming . | . . . . . . . Kinetic 1865 | 208 126 1513 18 . . . Thermal . | . . . . . . . Explosive . | . . . . . . . Electromagnetic . | . . . . . . . Impact 3472 | . . . 2064 1171 . 237 Slashing . | . . . . . . . Piercing . | . . . . . . . Highest Corruption 1 | . . . . 1 . . Average Corruption 1 | . . . . 1 . . Corruption Purged . | . . . . . . . Corruption Blocked . | . . . . . . . Effects 1 | . . . . 1 . . Data Loss (minor) 1 | . . . . 1 . . Overload Shots . | . . . . . . . Overflow Damage 1249 | . . 7 782 421 . 39 Projectiles . | . . . . . . . Explosions 7 | . . 7 . . . . Melee 1242 | . . . 782 421 . 39 Knockbacks 15 | . . 4 6 5 . . Impact 11 | . . . 6 5 . . Kinetic 4 | . . 4 . . . . Secondary . | . . . . . . . Self-Inflicted Damage 26 | . . 26 . . . . Shots 1 | . . 1 . . . . Rammed . | . . . . . . . Targets Rammed . | . . . . . . . Kicked . | . . . . . . . Crushed . | . . . . . . . Highest Temperature 9 | . . . 9 . . . Average Temperature 7 | . . . 7 . . . Received Heat Transfer 398 | . . 105 135 140 . 18 Siege Activations . | . . . . . . . Martial Activations . | . . . . . . . Shielding Activations . | . . . . . . . Robots Disrupted . | . . . . . . . Combat Hostiles . | . . . . . . . Robots Corrupted 13 | . . . 7 6 . . Combat Hostiles 8 | . . . 4 4 . . Parts Fried 17 | . . . 14 2 . 1 Impact Corruptions 42 | . . . 23 18 . 1 Robots Melted . | . . . . . . . Combat Hostiles . | . . . . . . . Parts Melted 1 | . . 1 . . . . Heat Transferred . | . . . . . . . Parts Sabotaged . | . . . . . . . Parts Stolen . | . . . . . . . Parts Stripped . | . . . . . . . Power Chain Reactions . | . . . . . . . Alert | -11 -10 -10 -8 -7 -6 -6 ------- Run | Yrd Mat Sub Mat Fac Fac DSF Maximum Alert Level . | . . . . . . . Low Security (%) 100 | 100 100 . 100 100 100 100 Level 1 . | . . . . . . . Level 2 . | . . . . . . . Level 3 . | . . . . . . . Level 4 . | . . . . . . . Level 5 . | . . . . . . . High Security . | . . . . . . . Max Security . | . . . . . . . Peak Influence 158 | 15 60 . 158 80 10 27 Initial 10 | . . . . . 10 7 Average 40 | 3 20 . 69 28 10 14 Influence Increases 942 | 30 106 110 439 237 . 20 Destroy 0b10 Robot/C 640 | . 60 100 280 180 . 20 Destroy 0b10 Robot/NC 95 | 30 . . 55 10 . . Destroy Leader 118 | . 10 10 66 32 . . Successful Hack 28 | . 5 . 23 . . . Select Force Hacks 30 | . 30 . . . . . Disable Machine 15 | . . . . 15 . . Destroy Structure 1 | . 1 . . . . . Lose Combat Pursuer 15 | . . . 15 . . . Influence Decreases 942 | 30 106 110 439 215 12 30 Entered New Map 15 | . . . . . 12 3 Time Decay 671 | 30 106 80 270 185 . . Lost Part 117 | . . 30 30 30 . 27 Purge Threat 139 | . . . 139 . . . Squads Dispatched 8 | . 2 . 1 3 . 2 Investigation 2 | . 1 . . 1 . . Extermination 1 | . . . . 1 . . Reinforcement 5 | . 1 . 1 1 . 2 Assault . | . . . . . . . Garrison . | . . . . . . . Intercept . | . . . . . . . Searches Triggered . | . . . . . . . Construction Impeded . | . . . . . . . Haulers Reinforced . | . . . . . . . Active Scanning Responses . | . . . . . . . Cargo Convoy Interrupts . | . . . . . . . Stealth | -11 -10 -10 -8 -7 -6 -6 --------- Run | Yrd Mat Sub Mat Fac Fac DSF Distress Signals 4 | . 1 . 2 1 . . Communications Jammed . | . . . . . . . Distress Signals . | . . . . . . . Times Spotted 67 | . 6 17 20 18 . 6 Peak Tracking Total 8 | . 3 3 8 7 . 4 Tactical Retreats 1 | . . . 1 . . . Traps | -11 -10 -10 -8 -7 -6 -6 ------- Run | Yrd Mat Sub Mat Fac Fac DSF Traps Triggered 6 | . 1 . 1 1 . 3 Indirectly . | . . . . . . . Trap Hack Attempts . | . . . . . . . Triggered . | . . . . . . . Disarmed . | . . . . . . . Reprogrammed . | . . . . . . . Reused . | . . . . . . . Traps Extracted . | . . . . . . . Installed . | . . . . . . . Triggered . | . . . . . . . Machines | -11 -10 -10 -8 -7 -6 -6 ---------- Run | Yrd Mat Sub Mat Fac Fac DSF Machines Disabled 2 | . . 1 . 1 . . Max in Single Turn 1 | . . 1 . 1 . . Machines Repaired . | . . . . . . . Machines Dismantled . | . . . . . . . Machines Sabotaged . | . . . . . . . Overloaded Fab Kills . | . . . . . . . Hacking | -11 -10 -10 -8 -7 -6 -6 --------- Run | Yrd Mat Sub Mat Fac Fac DSF Machines Accessed 12 | . 2 2 5 2 1 . Terminals 7 | . 1 . 4 1 1 . Fabricators . | . . . . . . . Repair Stations 1 | . . . 1 . . . Recycling Units 2 | . 1 . . 1 . . Scanalyzers . | . . . . . . . Garrison Access . | . . . . . . . Total Hacks 47 | . 9 12 17 8 1 . Successful 29 | . 2 12 11 3 1 . Failed 18 | . 7 . 6 5 . . Catastrophic 1 | . . . . 1 . . Database Lockouts . | . . . . . . . Manual 24 | . 7 . 12 5 . . Terminals 24 | . 5 . 13 5 1 . Fabricators . | . . . . . . . Repair Stations 4 | . . . 4 . . . Recycling Units 7 | . 4 . . 3 . . Scanalyzers . | . . . . . . . Garrison Access . | . . . . . . . Terminal Hacks 16 | . . 12 3 . 1 . Record 11 | . . 11 . . . . Open DSF 1 | . . . . . 1 . Branch Access Points 1 | . . . 1 . . . Emergency Access Points 1 | . . . 1 . . . Unreport Threat 1 | . . . 1 . . . Proto ID Catalog 1 | . . 1 . . . . Fabricator Hacks . | . . . . . . . Repair Station Hacks 4 | . . . 4 . . . Scan Component 2 | . . . 2 . . . Repair 2 | . . . 2 . . . Recycling Unit Hacks 2 | . . . . 2 . . Retrieve Components 2 | . . . . 2 . . Scanalyzer . | . . . . . . . Garrison Access Hacks . | . . . . . . . Unauthorized Hacks 7 | . 2 . 4 1 . . Terminals 6 | . 1 . 4 1 . . Botnet 6 | . 1 . 4 1 . . Fabricators . | . . . . . . . Repair Stations . | . . . . . . . Recycling Units 1 | . 1 . . . . . Tunnel 1 | . 1 . . . . . Scanalyzers . | . . . . . . . Garrison Access . | . . . . . . . Data Cores Recovered 1 | . . . 1 . . . Used 1 | . . . 1 . . . Hacking Detections 8 | . 2 . 3 2 1 . Full Trace Events 1 | . . . . 1 . . Feedback Events . | . . . . . . . Feedback Blocked . | . . . . . . . Robot Schematics Acquired . | . . . . . . . Robots Built . | . . . . . . . Authchips . | . . . . . . . Time . | . . . . . . . Total Robot Build Rating . | . . . . . . . Part Schematics Acquired . | . . . . . . . Parts Built . | . . . . . . . Authchips . | . . . . . . . Time . | . . . . . . . Total Part Build Rating . | . . . . . . . Parts Repaired 2 | . . . 2 . . . Time 88 | . . . 88 . . . Parts Recycled . | . . . . . . . Recycled Matter . | . . . . . . . Retrieved Matter . | . . . . . . . Retrieved Components . | . . . . . . . Parts Scanalyzed . | . . . . . . . Part Schematics Acquired . | . . . . . . . Parts Damaged . | . . . . . . . Bothacking | -11 -10 -10 -8 -7 -6 -6 ------------ Run | Yrd Mat Sub Mat Fac Fac DSF Used RIF Installer . | . . . . . . . Robots Hacked . | . . . . . . . Non-combat . | . . . . . . . Combat . | . . . . . . . Robot Hacks Applied . | . . . . . . . Relay Couplers Released . | . . . . . . . Fabnet Peak Effective % . | . . . . . . . Robots Rewired . | . . . . . . . Allies Hacked . | . . . . . . . Hacks Repelled . | . . . . . . . Allies | -11 -10 -10 -8 -7 -6 -6 -------- Run | Yrd Mat Sub Mat Fac Fac DSF Total Allies . | . . . . . . . Largest Group . | . . . . . . . Highest-Rated Group . | . . . . . . . Highest-Rated Ally . | . . . . . . . Total Orders . | . . . . . . . Ally Attacks . | . . . . . . . Total Damage . | . . . . . . . Kills . | . . . . . . . Allies Corrupted . | . . . . . . . Allies Melted . | . . . . . . . Intel | -11 -10 -10 -8 -7 -6 -6 ------- Run | Yrd Mat Sub Mat Fac Fac DSF Active Infowar (turns) 1630 | 40 338 758 124 299 18 53 Sensors 370 | . . . . 299 18 53 Seismic 1260 | 40 338 758 124 . . . Robot Analysis Total . | . . . . . . . Derelict Logs Recovered 1 | . . 1 . . . . Drone Launches . | . . . . . . . Drone Recoveries . | . . . . . . . Exploration | -11 -10 -10 -8 -7 -6 -6 ------------- Run | Yrd Mat Sub Mat Fac Fac DSF Turns Passed 4514 | 159 338 2466 816 627 18 90 Spaces Moved 2552 | 66 138 1298 524 455 17 54 Core 45 | 20 . . . . . 25 Treads 1519 | 46 138 1297 38 . . . Legs . | . . . . . . . Wheels 204 | . . . . 158 17 29 Hover 784 | . . 1 486 297 . . Flight . | . . . . . . . Fastest Speed 50 | 50 160 160 56 100 100 50 Average Speed 138 | 138 160 160 106 115 100 104 Slowest Speed 240 | 160 160 200 240 116 100 200 Overloaded Moves . | . . . . . . . Propulsion Burnouts . | . . . . . . . Robots Hopped . | . . . . . . . Potential Cave-ins . | . . . . . . . Cave-ins Triggered . | . . . . . . . Exploration Rate (%) 31 | 4 26 78 39 12 1 59 Regions Visited 6 Branch Regions 1 Pre-discovered Areas 3 | . 1 2 . . . . Known Exits Taken 1 | . . . . . 1 . Unknown Exits Taken 5 | 1 1 1 1 1 . . Scrap Searched 5 | . . 5 . . . . Spaces Dug . | . . . . . . . Terrain Destroyed 14 | . . 14 . . . . Melee . | . . . . . . . Projectile 1 | . . 1 . . . . AOE 13 | . . 13 . . . . Terrain Rammed . | . . . . . . . Walls Destroyed . | . . . . . . . Machines Disabled . | . . . . . . . Actions | -11 -10 -10 -8 -7 -6 -6 --------- Run | Yrd Mat Sub Mat Fac Fac DSF Total 3174 | 100 235 1530 709 506 18 76 Wait 275 | . 68 89 99 16 . 3 Move 2546 | 65 137 1297 523 454 16 54 Hop . | . . . . . . . Pick Up 44 | 10 7 14 9 1 . 3 Fast Attach 29 | 2 . 5 18 4 . . Attach 22 | 5 . 7 4 2 2 2 Detach 1 | . . . . 1 . . Swap 15 | . 4 6 3 2 . . Drop 45 | . 7 12 19 4 . 3 Fire 132 | 18 12 100 2 . . . Melee 60 | . . . 32 22 . 6 Ram . | . . . . . . . Kick . | . . . . . . . Crush . | . . . . . . . Escape Stasis 5 | . . . . . . 5 Rewire . | . . . . . . . Trap . | . . . . . . . Miscellaneous . | . . . . . . . Route ------- -11/Scrapyard -10/Materials (discovered 3 exits: [*Mat] / [*Min] / *Sub) -10/Subcaves (discovered 2 exits: *Mat x2) -8/Materials -7/Factory -6/Factory -6/DSF (discovered 1 exit: [*Fac]) History --------- Turn | Location | Event 24 | -11/Scrapyard | Discovered new exit (range 15) 160 | -11/Scrapyard | Entered Materials 278 | -10/Materials | Discovered new exit (range 9) 309 | -10/Materials | Build established: Mutant 404 | -10/Materials | Discovered new exit (range 15) 489 | -10/Materials | Discovered new exit (range 4) 498 | -10/Materials | Entered Subcaves 499 | -10/Subcaves | Ambushed by Subdwellers from Twisted Machinery 499 | -10/Subcaves | Approached by a straggling Scientist 600 | -10/Subcaves | Lost 4 parts (1p1n2w) 795 | -10/Subcaves | Visited Clippyterm 800 | -10/Subcaves | Learned location of Extension (-5) 933 | -10/Subcaves | Shifting Twisted Machinery released Sub. Laser 936 | -10/Subcaves | Shifting Twisted Machinery released Battle Cannon 1171 | -10/Subcaves | Discovered new exit (range 14) 1218 | -10/Subcaves | Core integrity fell below 50% 2070 | -10/Subcaves | A swath of the cavern ceiling suddenly collapsed 2242 | -10/Subcaves | Shifting Twisted Machinery released Shrapnel Trap 2243 | -10/Subcaves | Shifting Twisted Machinery released Sub. Machine Gun 2333 | -10/Subcaves | Discovered new exit (range 13) 2849 | -10/Subcaves | Learned location of Zion (-6) 2872 | -10/Subcaves | Visited 4L-MR0's lab 2892 | -10/Subcaves | Found Rainbow Chip 2964 | -10/Subcaves | Entered Materials 2964 | -8/Materials | Evolved 4 slots: Utility x3, Weapon x1 3160 | -8/Materials | Destroyed 7 combat bots 3272 | -8/Materials | Repaired Gravmag System 3317 | -8/Materials | Repaired Gravmag System 3336 | -8/Materials | Discovered new exit (range 15) 3338 | -8/Materials | Build established: Gladiator 3780 | -8/Materials | Entered Factory 3780 | -7/Factory | Evolved 2 slots: Power x1, Utility x1 4389 | -7/Factory | Discovered new exit (range 11) 4407 | -7/Factory | Entered another Factory area 4407 | -6/Factory | Evolved 2 slots: Utility x2 4425 | -6/Factory | Identified exit to DSF 4425 | -6/Factory | Entered DSF 4436 | -6/DSF | Lost 3 parts (1p2u) 4467 | -6/DSF | Additional patrols routed to DSF 4494 | -6/DSF | Core integrity fell below 50% 4509 | -6/DSF | Core integrity fell below 20% 4515 | -6/DSF | Discovered new exit (range 15) 4515 | -6/DSF | Destroyed by G-50 Soldier with Heavy Laser Last Messages --------------- 04493_ Critical hit (Blast). 04493_ Knocked back. 04497_ H-61 Shepherd calls for reinforcements. 04497_ ALERT: Hostile activity reported, dispatching reinforcements to area. 04498_ Power Maul destroyed. 04498_ Knocked back. 04501_ Actuator Array destroyed. 04505_ Penetrated by Slug. 04505_ Power Maul destroyed. 04505_ Imp. Signal Interpreter destroyed. 04505_ Critical hit (Blast). 04505_ Knocked back. 04506_ A-15 Conveyor delivers Adv. Field Recycling Unit. 04506_ Imp. Melee Analysis Suite destroyed. 04507_ A-15 Conveyor delivers Adv. Field Recycling Unit. 04510_ Slug penetrates Wall. 04515_ EXIT=FOUND Map ----- +----------------------------------------------------+ | ?????????????????????!! =????????### ##????? | | ??????????????????????! =????????#! #????? | | ??????????????????????! =????????#!! #????? | | ????????????????????### ##???????### ##????? | | ????????????????????#!! !????????# !#????? | | ????????????????????#! !????????# !#????? | | ????????????????????? !????????# !#????? | | ????????????????###???# #?########## ###???? | | ????????????# ??#!!!?## ###!!!#]]]## #???? | | ?????????? ## #!!!## %##!!%"]]]## #???? | | ?????????? ^ % ^^ #???? | | ?????????? % % ^ %% %% ^ #???? | | ?????????? ^!!* ^^ #???? | | ????????????#***#[[[## ##!!!" ## #???? | | ?????????????????????## ###!!!" ## #???? | | ????????????????????### #######"#########???? | | ????????????????????#!! ==#?????#???????????? | | ????????????????????#!! ==#?????????????????? | | ????????????????????#!! ==#?????????????????? | | ????????????????????##" ###?????????????????? | | ????????????????????# !!#?????????????????? | | ????????????????????# !!#?????????????????? | | ????????????????????# !!#?????????????????? | | ????????????????? "## ###?????????????????? | | ?????????????#!!# ###g ###?????????????????? | | ????????" @ #?????????????????? | | ????????"< g #?????????????????? | | ?????????"""##!!# # !!#?????????????????? | | ????????????????###?# !!#?????????????????? | | ????????????????????#########?????????????????? | | ??????????????????????????????????????????????? | | ??????????????????????????????????????????????? | | ??????????????????????????????????????????????? | | ??????????????????????????????????????????????? | | ??????????????????????????????????????????????? | | ??????????????????????????????????????????????? | | ??????????????????????????????????????????????? | | | | | | | | | | | | | | | | | | | | | | | | | | | +----------------------------------------------------+ Best States ------------- Heat Dissipation 37 Energy Generation 23 Energy Capacity 340 Matter Stores 300 Matter Capacity 300 Sight Range 16 Robot Scan Range 15 Terrain Scan Density 110 Armor Coverage 150 Evasion (%) 53 Melee Accuracy 6 Core Analysis 6 Recoil Reduction 2 Item Schematics ----------------- None Robot Schematics ------------------ None Fabricated ------------ Nothing Repaired ---------- Gravmag System | 40% | -8/Materials Gravmag System | 64% | -8/Materials Alien Tech Used ----------------- None Achievements -------------- None Challenges ------------ None Game ------ Seed ThunderMissileRouter Manual? 0 Play Time 00:32:43 Cumulative 108.0 hours Start 2025.07.31 @ 21:29:52 End 2025.07.31 @ 22:01:41 Sessions 1 Manual Loads 0 Difficulty Rogue Special Mode None Game No. 85 Rogue 85 Adventurer 0 Explorer 0 Win Type - Total 0 Types 0/0/0/0/0/0/0/0/0/0 Lore% 62 Gallery% 50 Achievement% 44 Wizard Run 0 Options --------- Layout 1 ASCII 0 Keyboard 0 Movement Mouse Keybinds 0 Fullscreen 1 Font 24/Smallcaps Map View 50x35 Zoom Use 0% Tactical HUD 1 Map Filters NONE Filters NONE Steam 1 RUN: b0609ff3-89f3-4e8e-a208-38ee52433d75